[Event "Championnat du monde jeunes U10F"]
[Date "2024.11.26"]
[White "Samhita Pungavanam"]
[Black "Tykalova, Barbora"]
[WhiteElo "1752"]
[BlackElo "1596"]
[Round "11.12"]
[Result "1-0"]
[TimeControl "5400+30"]

1. e4 {[%clk 1:30:32]} 1... e5 {[%clk 1:30:51]} 2. Nf3 {[%clk 1:30:54]} 2... Nf6
{[%clk 1:30:42]} 3. Nc3 {[%clk 1:30:53]} 3... Nc6 {[%clk 1:29:33]} 4. a3 {[%clk
1:30:32]} 4... Be7 {[%clk 1:28:02]} 5. Bb5 {[%clk 1:27:40]} 5... a6 {[%clk
1:27:01]} 6. Bxc6 {[%clk 1:19:45]} 6... dxc6 {[%clk 1:26:26]} 7. Nxe5 {[%clk
1:13:49]} 7... Nxe4 {[%clk 1:25:34]} 8. Qf3 {[%clk 1:00:27]} 8... Nf6 {[%clk
1:24:03]} 9. O-O O-O {[%clk 1:24:03]} 10. h3 Be6 {[%clk 1:24:03]} 11. Qe3 Nd5
{[%clk 1:24:03]} 12. Nxd5 Qxd5 {[%clk 1:24:03]} 13. c4 Qd6 {[%clk 1:24:03]} 14.
d4 Rad8 {[%clk 1:24:03]} 15. Rd1 f6 {[%clk 1:24:03]} 16. c5 Qd5 {[%clk 1:24:03]}
17. Nd3 Qb3 {[%clk 1:24:03]} 18. Re1 Bd7 {[%clk 1:24:03]} 19. Qg3 Rf7 {[%clk
1:24:03]} 20. Bf4 Bf5 {[%clk 1:24:03]} 21. Re3 Rxd4 {[%clk 1:24:03]} 22. Nb4
Qxb2 {[%clk 1:24:03]} 23. Rae1 Bxc5 {[%clk 1:24:03]} 24. Rb3 Qxb3 {[%clk
1:24:03]} 25. Qxb3 Rxf4 {[%clk 1:24:03]} 26. Re8+ Bf8 {[%clk 1:24:03]} 27. g3
Re4 {[%clk 1:24:03]} 28. Rd8 Bxh3 {[%clk 1:24:03]} 29. Nd3 Be6 {[%clk 1:24:03]}
30. Qxb7 Rd7 {[%clk 1:24:03]} 31. Rxd7 Bxd7 {[%clk 1:24:03]} 32. Qa8 Ra4 {[%clk
1:24:03]} 33. Nc5 Rd4 {[%clk 1:24:03]} 34. Nxd7 Rxd7 {[%clk 1:24:03]} 35. Qxa6
Rd1+ {[%clk 1:24:03]} 36. Kg2 Rc1 {[%clk 1:24:03]} 37. Qc8 Kf7 {[%clk 1:24:03]}
38. Qd7+ Be7 {[%clk 1:24:03]} 39. a4 Ra1 40. Qxc6 Bd6 41. Qa8 Ke6 42. a5 Ra4
{[%clk 1:24:03]} 43. Qe8+ 1-0

[Variant "Standard"]
[Site "Europe Echecs"]

[Event "Championnat du monde jeunes U10F"]
[Date "2024.11.26"]
[White "Pham Nhu Y"]
[Black "Tu, Tiffany"]
[WhiteElo "1545"]
[BlackElo "1687"]
[Round "11.13"]
[Result "0-1"]
[TimeControl "5400+30"]

1. d4 {[%clk 1:30:58]} 1... d5 {[%clk 1:30:53]} 2. Nf3 {[%clk 1:31:09]} 2... e6
{[%clk 1:31:06]} 3. c4 {[%clk 1:31:31]} 3... c6 {[%clk 1:31:22]} 4. Nc3 {[%clk
1:31:39]} 4... dxc4 {[%clk 1:31:34]} 5. a4 {[%clk 1:31:14]} 5... Bb4 {[%clk
1:31:31]} 6. e3 {[%clk 1:29:57]} 6... b5 {[%clk 1:31:20]} 7. Bd2 {[%clk
1:28:20]} 7... a6 {[%clk 1:30:58]} 8. axb5 {[%clk 1:28:11]} 8... Bxc3 {[%clk
1:31:18]} 9. Bxc3 {[%clk 1:28:31]} 9... cxb5 {[%clk 1:31:36]} 10. b3 {[%clk
1:26:41]} 10... cxb3 {[%clk 1:27:36]} 11. Bxb5+ {[%clk 1:26:20]} 11... axb5
{[%clk 1:14:47]} 12. Rxa8 {[%clk 1:26:39]} 12... Qc7 {[%clk 1:14:45]} 13. Qxb3
{[%clk 1:23:48]} 13... Ba6 {[%clk 1:06:03]} 14. Rxa6 {[%clk 1:20:14]} 14... Nxa6
{[%clk 1:05:09]} 15. Qxb5+ {[%clk 1:20:35]} 15... Ke7 {[%clk 1:01:34]} 16. Kd2
{[%clk 1:20:24]} 16... Nf6 {[%clk 0:57:10]} 17. Bb4+ {[%clk 1:05:26]} 17... Nxb4
{[%clk 0:56:58]} 18. Qxb4+ {[%clk 1:05:48]} 18... Qd6 {[%clk 0:55:18]} 19. Qxd6+
{[%clk 1:05:58]} 19... Kxd6 {[%clk 0:55:46]} 20. Ne5 {[%clk 1:06:13]} 20... Ke7
{[%clk 0:52:28]} 21. Ra1 {[%clk 1:05:33]} 21... Ne4+ {[%clk 0:49:32]} 22. Ke2
{[%clk 1:05:04]} 22... Nc3+ {[%clk 0:43:07]} 23. Kd3 {[%clk 1:04:39]} 23... Nb5
{[%clk 0:41:08]} 24. Ra5 {[%clk 1:03:37]} 24... Nc7 {[%clk 0:40:20]} 25. Ra7
{[%clk 1:03:30]} 25... Rc8 {[%clk 0:40:28]} 26. Nc4 {[%clk 1:03:18]} 26... Kd8
{[%clk 0:35:04]} 27. Nd6 {[%clk 1:02:42]} 27... Rb8 {[%clk 0:34:52]} 28. Nxf7+
{[%clk 1:03:04]} 28... Kc8 {[%clk 0:34:12]} 29. Ne5 {[%clk 0:59:59]} 29... Rb3+
{[%clk 0:32:04]} 30. Ke4 {[%clk 0:59:25]} 30... Kb8 {[%clk 0:31:42]} 31. Nc6+
{[%clk 0:59:21]} 31... Kc8 {[%clk 0:31:58]} 32. Ra8+ {[%clk 0:59:25]} 32... Nxa8
{[%clk 0:00:00]} 33. Ne5 {[%clk 0:55:35]} 33... Nc7 {[%clk 0:32:31]} 34. Nd3
{[%clk 0:55:17]} 34... Na6 {[%clk 0:31:46]} 35. Nf4 {[%clk 0:54:10]} 35... Rb6
{[%clk 0:29:30]} 36. Nh5 {[%clk 0:54:32]} 36... Rb7 {[%clk 0:29:13]} 37. g4
{[%clk 0:53:25]} 37... Nb4 {[%clk 0:27:17]} 38. f4 {[%clk 0:53:27]} 38... g6
{[%clk 0:20:24]} 39. Nf6 {[%clk 0:53:40]} 39... Nc2 {[%clk 0:17:10]} 40. Kd3
{[%clk 0:53:54]} 40... Nb4+ {[%clk 0:16:06]} 41. Ke4 {[%clk 0:54:12]} 41... Nc6
{[%clk 0:13:07]} 42. h4 {[%clk 0:52:52]} 42... h5 {[%clk 0:09:47]} 43. gxh5
{[%clk 0:53:10]} 43... gxh5 {[%clk 0:10:13]} 44. f5 {[%clk 0:53:23]} 44... Re7
{[%clk 0:07:00]} 45. Kf4 {[%clk 0:51:19]} 45... exf5 {[%clk 0:06:08]} 46. d5
{[%clk 0:50:14]} 46... Nb4 {[%clk 0:04:29]} 47. d6 {[%clk 0:44:06]} 47... Re6
{[%clk 0:03:02]} 48. Nxh5 {[%clk 0:43:50]} 48... Kd7 {[%clk 0:01:49]} 49. Ng7
{[%clk 0:40:09]} 49... Re4+ {[%clk 0:01:25]} 50. Kf3 {[%clk 0:38:41]} 50... Rxh4
{[%clk 0:01:10]} 51. Nxf5 Rh8 {[%clk 0:01:04]} 52. e4 {[%clk 0:38:57]} 52... Nc6
{[%clk 0:01:07]} 53. Kf4 {[%clk 0:37:44]} 53... Rh1 {[%clk 0:01:01]} 54. Ke3
{[%clk 0:36:51]} 54... Re1+ {[%clk 0:01:07]} 55. Kf3 {[%clk 0:33:00]} 55... Nd8
{[%clk 0:01:00]} 56. Kf4 {[%clk 0:29:32]} 56... Nf7 {[%clk 0:01:19]} 57. Ne3
{[%clk 0:28:00]} 57... Nxd6 {[%clk 0:00:49]} 58. Ng2 {[%clk 0:27:50]} 58...
Rxe4+ {[%clk 0:01:09]} 59. Kf3 {[%clk 0:27:56]} 59... Ke6 {[%clk 0:01:16]} 60.
Nf4+ {[%clk 0:28:21]} 60... Kf5 {[%clk 0:01:40]} 61. Nh5 {[%clk 0:27:26]} 61...
Kg6 {[%clk 0:01:36]} 62. Nf4+ {[%clk 0:27:48]} 62... Kf7 {[%clk 0:01:24]} 63.
Nh3 {[%clk 0:27:42]} 63... Ra4 {[%clk 0:01:31]} 64. Nf4 {[%clk 0:27:30]} 64...
Nf5 {[%clk 0:01:35]} 65. Nd3 {[%clk 0:27:37]} 65... Nh4+ {[%clk 0:01:21]} 66.
Ke3 {[%clk 0:27:58]} 66... Ng2+ {[%clk 0:01:26]} 67. Kf3 {[%clk 0:28:03]} 67...
Ra3 {[%clk 0:01:36]} 68. Ke2 {[%clk 0:28:17]} 68... Ke6 {[%clk 0:01:43]} 69. Nf2
{[%clk 0:28:17]} 69... Nf4+ 70. Kd2 {[%clk 0:28:30]} 70... Kd5 {[%clk 0:01:58]}
71. Nd1 {[%clk 0:28:43]} 71... Kd4 {[%clk 0:02:03]} 72. Kc2 {[%clk 0:27:13]}
72... Nd5 {[%clk 0:01:26]} 73. Nb2 {[%clk 0:27:19]} 73... Nb4+ {[%clk 0:01:29]}
74. Kb1 {[%clk 0:27:23]} 74... Rb3 {[%clk 0:01:30]} 75. Ka1 {[%clk 0:27:14]}
75... Kc3 {[%clk 0:01:20]} 76. Nd1+ {[%clk 0:27:12]} 76... Kc2 {[%clk 0:01:38]}
77. Ne3+ {[%clk 0:27:31]} 77... Kc1 {[%clk 0:01:41]} 0-1

[Variant "Standard"]
[Site "Europe Echecs"]

[Event "Championnat du monde jeunes U10F"]
[Date "2024.11.26"]
[White "Constantin-Ciuntu, Anne-Sophie"]
[Black "Blakhina Viktoryia"]
[WhiteElo "1672"]
[BlackElo "1436"]
[Round "11.14"]
[Result "1-0"]
[TimeControl "5400+30"]

1. e4 {[%clk 1:30:57]} 1... e6 {[%clk 1:30:49]} 2. d4 {[%clk 1:31:21]} 2... d5
{[%clk 1:31:15]} 3. Nd2 {[%clk 1:31:45]} 3... dxe4 {[%clk 1:31:38]} 4. Nxe4
{[%clk 1:32:07]} 4... Nd7 {[%clk 1:31:55]} 5. Nf3 {[%clk 1:32:26]} 5... Ngf6
{[%clk 1:32:18]} 6. Bd3 {[%clk 1:32:39]} 6... Nxe4 {[%clk 1:31:47]} 7. Bxe4
{[%clk 1:33:07]} 7... Nf6 {[%clk 1:31:59]} 8. Bd3 {[%clk 1:33:11]} 8... Be7
{[%clk 1:29:26]} 9. c3 {[%clk 1:32:25]} 9... b6 {[%clk 1:28:29]} 10. Ne5 {[%clk
1:30:55]} 10... Bb7 {[%clk 1:28:39]} 11. Bb5+ {[%clk 1:30:02]} 11... Kf8 {[%clk
1:14:56]} 12. f3 {[%clk 1:24:23]} 12... c5 {[%clk 1:06:31]} 13. O-O {[%clk
1:22:18]} 13... Qc7 {[%clk 0:59:50]} 14. Bf4 {[%clk 1:19:28]} 14... Bd6 {[%clk
0:59:44]} 15. Qe2 {[%clk 1:14:18]} 15... Ke7 {[%clk 0:56:49]} 16. dxc5 {[%clk
1:07:40]} 16... Qxc5+ {[%clk 0:52:23]} 17. Kh1 {[%clk 1:07:54]} 17... Nh5 {[%clk
0:47:49]} 18. g3 {[%clk 0:53:14]} 18... f6 {[%clk 0:39:02]} 19. Nd7 {[%clk
0:51:40]} 19... Nxf4 {[%clk 0:37:05]} 20. Nxc5 {[%clk 0:51:15]} 20... Nxe2
{[%clk 0:37:26]} 21. Nxb7 {[%clk 0:51:40]} 21... Bxg3 {[%clk 0:34:27]} 22. Bxe2
{[%clk 0:52:00]} 22... Bf4 {[%clk 0:31:29]} 23. Ba6 {[%clk 0:51:41]} 23... Rhc8
{[%clk 0:24:09]} 24. Rfd1 {[%clk 0:48:46]} 24... Rc7 {[%clk 0:24:06]} 25. Rd4
{[%clk 0:47:08]} 25... g5 {[%clk 0:15:01]} 26. Rad1 {[%clk 0:45:31]} 26... Rb8
{[%clk 0:10:24]} 27. Nd6 {[%clk 0:44:40]} 27... Bxd6 {[%clk 0:07:04]} 28. Rxd6
{[%clk 0:45:07]} 28... h5 {[%clk 0:06:20]} 29. Bb5 {[%clk 0:45:02]} 29... Rbc8
{[%clk 0:02:15]} 30. Rd7+ {[%clk 0:45:12]} 30... Kf8 {[%clk 0:02:22]} 31. Ba6
{[%clk 0:44:55]} 31... Rxd7 {[%clk 0:02:46]} 32. Rxd7 {[%clk 0:45:24]} 32... Ke8
{[%clk 0:01:29]} 33. Bxc8 {[%clk 0:45:47]} 1-0

[Variant "Standard"]
[Site "Europe Echecs"]

[Event "Championnat du monde jeunes U10F"]
[Date "2024.11.26"]
[White "Tran Hoang Bao An"]
[Black "Ahmadli, Mehriban"]
[WhiteElo "1714"]
[BlackElo "1624"]
[Round "11.15"]
[Result "1-0"]
[TimeControl "5400+30"]

1. d4 {[%clk 1:30:54]} 1... Nf6 {[%clk 1:30:59]} 2. c4 {[%clk 1:30:46]} 2... g6
{[%clk 1:31:29]} 3. Nf3 {[%clk 1:29:58]} 3... Bg7 {[%clk 1:31:56]} 4. g3 {[%clk
1:29:21]} 4... O-O {[%clk 1:32:15]} 5. Bg2 {[%clk 1:28:46]} 5... d6 {[%clk
1:32:42]} 6. O-O {[%clk 1:28:17]} 6... c5 {[%clk 1:31:43]} 7. Nc3 {[%clk
1:27:51]} 7... Nc6 {[%clk 1:27:14]} 8. d5 {[%clk 1:26:31]} 8... Nb8 {[%clk
1:26:31]} 9. h3 {[%clk 1:24:53]} 9... Nbd7 {[%clk 1:23:25]} 10. e4 {[%clk
1:21:48]} 10... Nb6 {[%clk 1:22:47]} 11. Qe2 {[%clk 1:21:37]} 11... e6 {[%clk
1:22:36]} 12. Rd1 {[%clk 1:12:25]} 12... exd5 {[%clk 1:22:45]} 13. cxd5 {[%clk
1:12:16]} 13... Re8 {[%clk 1:22:55]} 14. Qc2 {[%clk 1:11:44]} 14... a6 {[%clk
1:14:05]} 15. Rb1 {[%clk 1:08:17]} 15... Qe7 {[%clk 1:07:34]} 16. Re1 {[%clk
1:05:42]} 16... Nbd7 {[%clk 0:59:36]} 17. a4 {[%clk 1:03:50]} 17... h6 {[%clk
0:47:09]} 18. b3 {[%clk 0:58:29]} 18... Rb8 {[%clk 0:43:21]} 19. a5 {[%clk
0:55:18]} 19... b5 {[%clk 0:37:24]} 20. axb6 {[%clk 0:55:31]} 20... Rxb6 {[%clk
0:37:11]} 21. Bb2 {[%clk 0:51:13]} 21... Nh7 {[%clk 0:33:13]} 22. Na4 {[%clk
0:51:21]} 22... Rb4 {[%clk 0:32:09]} 23. Bxg7 {[%clk 0:50:38]} 23... Kxg7 {[%clk
0:31:51]} 24. Nb2 {[%clk 0:49:55]} 24... Ng5 {[%clk 0:25:32]} 25. Nxg5 {[%clk
0:50:00]} 25... Qxg5 {[%clk 0:25:17]} 26. Nc4 {[%clk 0:48:12]} 26... Qe7 {[%clk
0:23:28]} 27. Qc3+ {[%clk 0:46:04]} 27... Kg8 {[%clk 0:22:03]} 28. Rbd1 {[%clk
0:44:12]} 28... Rb8 {[%clk 0:15:50]} 29. Rd2 {[%clk 0:39:01]} 29... Bb7 {[%clk
0:12:44]} 30. h4 {[%clk 0:37:34]} 30... h5 {[%clk 0:11:29]} 31. Rde2 {[%clk
0:36:30]} 31... Rbd8 {[%clk 0:07:01]} 32. e5 {[%clk 0:33:19]} 32... dxe5 {[%clk
0:07:11]} 33. d6 {[%clk 0:33:42]} 33... Qf6 {[%clk 0:06:50]} 34. Bxb7 {[%clk
0:34:08]} 34... Re6 {[%clk 0:05:51]} 35. Bd5 {[%clk 0:33:58]} 35... Ree8 {[%clk
0:06:19]} 36. Re3 {[%clk 0:34:11]} 36... Qg7 {[%clk 0:06:33]} 37. Bc6 {[%clk
0:33:48]} 37... f6 {[%clk 0:06:12]} 38. Bd5+ {[%clk 0:32:47]} 38... Kh7 {[%clk
0:06:30]} 39. f4 {[%clk 0:32:48]} 39... Kh6 {[%clk 0:05:12]} 40. fxe5 {[%clk
0:32:23]} 40... fxe5 {[%clk 0:05:09]} 41. Bc6 {[%clk 0:32:17]} 41... Re6 {[%clk
0:05:05]} 42. Bxd7 {[%clk 0:32:19]} 42... Rxd7 {[%clk 0:04:21]} 43. Rxe5 {[%clk
0:32:35]} 43... Rxe5 {[%clk 0:04:12]} 44. Qxe5 {[%clk 0:32:59]} 44... Qf8 {[%clk
0:03:47]} 45. Qg5+ {[%clk 0:33:00]} 45... Kh7 {[%clk 0:04:15]} 46. Re7+ {[%clk
0:33:18]} 46... Rxe7 {[%clk 0:04:26]} 47. Qxe7+ {[%clk 0:33:30]} 47... Kg8
{[%clk 0:04:51]} 48. Qxf8+ {[%clk 0:33:43]} 48... Kxf8 {[%clk 0:05:11]} 49. Kf2
{[%clk 0:34:10]} 49... Ke8 {[%clk 0:05:38]} 50. Ke3 {[%clk 0:34:37]} 50... Kd7
{[%clk 0:06:04]} 51. Ke4 {[%clk 0:35:04]} 51... a5 {[%clk 0:06:31]} 52. Kd5
{[%clk 0:35:23]} 52... Kd8 {[%clk 0:07:00]} 53. Kc6 {[%clk 0:35:44]} 53... Kc8
{[%clk 0:07:27]} 54. d7+ {[%clk 0:36:03]} 54... Kd8 {[%clk 0:07:55]} 55. Ne5
{[%clk 0:36:28]} 55... g5 {[%clk 0:08:19]} 56. Nf7+ {[%clk 0:36:53]} 56... Ke7
{[%clk 0:08:46]} 57. d8=Q+ {[%clk 0:37:09]} 57... Kxf7 {[%clk 0:09:13]} 1-0

[Variant "Standard"]
[Site "Europe Echecs"]

[Event "Championnat du monde jeunes U10F"]
[Date "2024.11.26"]
[White "Bhavanya Panchumarthi"]
[Black "Malcheva, Niya"]
[WhiteElo "1703"]
[BlackElo "1620"]
[Round "11.16"]
[Result "1-0"]
[TimeControl "5400+30"]

1. d4 {[%clk 1:30:57]} 1... d5 {[%clk 1:30:56]} 2. Nc3 {[%clk 1:31:17]} 2... Nf6
{[%clk 1:31:04]} 3. Bf4 {[%clk 1:31:36]} 3... Bf5 {[%clk 1:29:11]} 4. e3 {[%clk
1:31:36]} 4... e6 {[%clk 1:29:25]} 5. f3 {[%clk 1:31:22]} 5... a6 {[%clk
1:26:06]} 6. g4 {[%clk 1:29:01]} 6... Bg6 {[%clk 1:26:25]} 7. h4 {[%clk
1:28:30]} 7... h6 {[%clk 1:26:42]} 8. Bd3 {[%clk 1:28:06]} 8... Bxd3 {[%clk
1:26:54]} 9. Qxd3 {[%clk 1:27:55]} 9... Bd6 {[%clk 1:25:26]} 10. Nge2 {[%clk
1:26:00]} 10... Nc6 {[%clk 1:22:04]} 11. Kf2 {[%clk 1:22:18]} 11... e5 {[%clk
1:05:19]} 12. dxe5 {[%clk 1:16:13]} 12... Nxe5 {[%clk 1:05:35]} 13. Bxe5 {[%clk
1:13:39]} 13... Bxe5 {[%clk 1:05:05]} 14. g5 {[%clk 1:12:11]} 14... hxg5 {[%clk
1:05:10]} 15. hxg5 {[%clk 1:11:10]} 15... Nh5 {[%clk 0:55:50]} 16. Qxd5 {[%clk
1:05:09]} 16... Qxd5 {[%clk 0:55:01]} 17. Nxd5 {[%clk 1:05:27]} 17... O-O-O
{[%clk 0:55:07]} 18. Rad1 {[%clk 0:58:36]} 18... g6 {[%clk 0:50:37]} 19. c3
{[%clk 0:53:03]} 19... Rd7 {[%clk 0:44:06]} 20. f4 {[%clk 0:46:41]} 20... Bg7
{[%clk 0:42:51]} 21. Ng3 {[%clk 0:44:25]} 21... Nxg3 {[%clk 0:31:06]} 22. Rxh8+
{[%clk 0:43:36]} 22... Bxh8 {[%clk 0:29:40]} 23. Kxg3 {[%clk 0:43:11]} 23... Kd8
{[%clk 0:26:30]} 24. e4 {[%clk 0:41:32]} 24... Bg7 {[%clk 0:22:17]} 25. Rh1
{[%clk 0:24:51]} 25... c6 {[%clk 0:21:25]} 26. Nf6 {[%clk 0:22:32]} 26... Bxf6
{[%clk 0:15:22]} 27. gxf6 {[%clk 0:22:54]} 27... Rd6 {[%clk 0:14:53]} 28. e5
{[%clk 0:22:11]} 28... Rd3+ {[%clk 0:14:56]} 29. Kg4 {[%clk 0:21:17]} 29... Kd7
{[%clk 0:10:14]} 30. Rh7 {[%clk 0:17:11]} 30... Ke6 {[%clk 0:10:31]} 31. Rh8
{[%clk 0:17:01]} 31... Kd7 {[%clk 0:07:46]} 32. Rf8 {[%clk 0:16:57]} 32... Ke6
{[%clk 0:07:03]} 33. Re8+ {[%clk 0:16:44]} 33... Kd5 {[%clk 0:07:27]} 34. Rd8+
{[%clk 0:16:00]} 34... Ke4 {[%clk 0:07:36]} 35. Rxd3 {[%clk 0:15:39]} 35... Kxd3
{[%clk 0:07:59]} 36. e6 {[%clk 0:15:46]} 1-0

[Variant "Standard"]
[Site "Europe Echecs"]

[Event "Championnat du monde jeunes U10F"]
[Date "2024.11.26"]
[White "Meng, Miranda"]
[Black "Shtepa, Liubov"]
[WhiteElo "1675"]
[BlackElo "1615"]
[Round "11.17"]
[Result "1-0"]
[TimeControl "5400+30"]

1. d4 {[%clk 1:30:58]} 1... d5 {[%clk 1:30:57]} 2. Bf4 {[%clk 1:31:24]} 2... Nf6
{[%clk 1:31:18]} 3. Nf3 {[%clk 1:31:50]} 3... e6 {[%clk 1:31:42]} 4. e3 {[%clk
1:32:17]} 4... Bd6 {[%clk 1:32:07]} 5. Bg3 {[%clk 1:32:20]} 5... O-O {[%clk
1:32:24]} 6. Bd3 {[%clk 1:32:41]} 6... c5 {[%clk 1:32:49]} 7. c3 {[%clk
1:33:07]} 7... Qc7 {[%clk 1:33:09]} 8. Nbd2 {[%clk 1:33:21]} 8... Nbd7 {[%clk
1:33:32]} 9. Rc1 {[%clk 1:30:54]} 9... Bxg3 {[%clk 1:33:54]} 10. hxg3 {[%clk
1:31:17]} 10... h6 {[%clk 1:31:16]} 11. Nh4 {[%clk 1:21:31]} 11... b6 {[%clk
1:27:23]} 12. f4 {[%clk 1:20:05]} 12... Nh7 {[%clk 1:24:04]} 13. Kf2 {[%clk
1:07:01]} 13... f5 {[%clk 1:19:13]} 14. g4 {[%clk 1:00:44]} 14... fxg4 {[%clk
1:12:07]} 15. Qxg4 {[%clk 0:57:59]} 15... Ndf6 {[%clk 1:06:25]} 16. Qg3 {[%clk
0:50:36]} 16... e5 {[%clk 1:03:47]} 17. dxe5 {[%clk 0:44:21]} 17... Qxe5 {[%clk
1:02:17]} 18. Ng6 {[%clk 0:41:27]} 18... Ng4+ {[%clk 0:55:55]} 19. Qxg4 {[%clk
0:40:36]} 19... Bxg4 {[%clk 0:45:42]} 20. Nxe5 {[%clk 0:41:01]} 20... Nf6 {[%clk
0:45:03]} 21. Ndf3 {[%clk 0:40:03]} 21... Rae8 {[%clk 0:44:39]} 22. Rhe1 {[%clk
0:38:05]} 22... c4 {[%clk 0:43:50]} 23. Bg6 {[%clk 0:38:05]} 23... Re7 {[%clk
0:43:49]} 24. Kg1 {[%clk 0:36:30]} 24... Bc8 {[%clk 0:43:18]} 25. Bc2 {[%clk
0:35:34]} 25... Ree8 {[%clk 0:43:13]} 26. Nh4 {[%clk 0:34:16]} 26... Rd8 {[%clk
0:40:02]} 27. Nhg6 {[%clk 0:33:41]} 27... Rfe8 {[%clk 0:40:04]} 28. Ba4 {[%clk
0:33:50]} 28... Re6 {[%clk 0:39:59]} 29. Nc6 {[%clk 0:33:06]} 29... Rde8 {[%clk
0:40:16]} 30. Nd4 {[%clk 0:33:00]} 1-0

[Variant "Standard"]
[Site "Europe Echecs"]

[Event "Championnat du monde jeunes U10F"]
[Date "2024.11.26"]
[White "Yi, Ruiyu"]
[Black "Mohamed Ahmed, Ghidaa"]
[WhiteElo "1571"]
[BlackElo "1638"]
[Round "11.19"]
[Result "1-0"]
[TimeControl "5400+30"]

1. d4 {[%clk 1:29:54]} 1... Nf6 {[%clk 1:30:51]} 2. c4 {[%clk 1:30:14]} 2... e6
{[%clk 1:31:11]} 3. Nc3 {[%clk 1:30:41]} 3... d5 {[%clk 1:31:34]} 4. cxd5 {[%clk
1:31:09]} 4... exd5 {[%clk 1:31:54]} 5. Bg5 {[%clk 1:31:36]} 5... Be7 {[%clk
1:32:11]} 6. e3 {[%clk 1:32:02]} 6... Nbd7 {[%clk 1:32:29]} 7. Bd3 {[%clk
1:32:23]} 7... c6 {[%clk 1:32:29]} 8. Nge2 {[%clk 1:32:40]} 8... h6 {[%clk
1:32:21]} 9. Bh4 {[%clk 1:33:04]} 9... O-O {[%clk 1:32:36]} 10. O-O {[%clk
1:33:29]} 10... Re8 {[%clk 1:32:41]} 11. f3 {[%clk 1:33:39]} 11... Nf8 {[%clk
1:28:59]} 12. Kh1 {[%clk 1:33:16]} 12... N6h7 {[%clk 1:21:57]} 13. Bf2 {[%clk
1:33:30]} 13... Bh4 {[%clk 1:21:42]} 14. e4 {[%clk 1:31:51]} 14... Bxf2 {[%clk
1:20:55]} 15. Rxf2 {[%clk 1:31:06]} 15... Nf6 {[%clk 1:19:54]} 16. e5 {[%clk
1:31:27]} 16... N6h7 {[%clk 1:13:50]} 17. f4 {[%clk 1:31:43]} 17... f6 {[%clk
1:00:56]} 18. Ng3 {[%clk 1:27:37]} 18... fxe5 {[%clk 0:52:36]} 19. dxe5 {[%clk
1:27:18]} 19... Qh4 {[%clk 0:44:09]} 20. Qf1 {[%clk 1:22:37]} 20... b5 {[%clk
0:30:23]} 21. Nce2 {[%clk 1:15:26]} 21... a6 {[%clk 0:27:07]} 22. b4 {[%clk
1:10:40]} 22... Bd7 {[%clk 0:20:49]} 23. Nd4 {[%clk 1:09:05]} 23... Qe7 {[%clk
0:13:34]} 24. a3 {[%clk 1:06:33]} 24... a5 {[%clk 0:11:08]} 25. Ngf5 {[%clk
1:05:14]} 25... Bxf5 {[%clk 0:10:26]} 26. Nxf5 {[%clk 1:04:02]} 26... Qd7 {[%clk
0:09:57]} 27. Nd6 {[%clk 1:02:24]} 27... Re7 {[%clk 0:08:09]} 28. Re1 {[%clk
0:58:23]} 28... axb4 {[%clk 0:07:53]} 29. axb4 {[%clk 0:58:43]} 29... Ra4 {[%clk
0:07:50]} 30. Rb2 {[%clk 0:55:57]} 30... Qg4 {[%clk 0:06:20]} 31. Bf5 {[%clk
0:55:06]} 31... Qh5 {[%clk 0:06:06]} 32. Rb3 {[%clk 0:54:04]} 32... Qh4 {[%clk
0:01:15]} 33. Rh3 {[%clk 0:54:04]} 33... Qxh3 {[%clk 0:01:42]} 34. Bxh3 {[%clk
0:54:27]} 34... Rxb4 {[%clk 0:02:04]} 35. f5 {[%clk 0:54:51]} 35... Nd7 {[%clk
0:02:11]} 36. e6 {[%clk 0:54:50]} 36... Ndf6 {[%clk 0:02:26]} 37. Nc8 {[%clk
0:54:44]} 37... Re8 {[%clk 0:02:33]} 38. Nd6 {[%clk 0:54:42]} 38... Re7 {[%clk
0:02:54]} 39. Ra1 {[%clk 0:55:04]} 39... Ng5 {[%clk 0:02:03]} 40. Qe1 {[%clk
0:54:17]} 40... Rb3 {[%clk 0:02:07]} 41. Ra6 {[%clk 0:53:12]} 41... Nxh3 {[%clk
0:02:01]} 42. gxh3 {[%clk 0:53:03]} 42... Rxh3 {[%clk 0:02:27]} 43. Rxc6 {[%clk
0:53:07]} 43... Ng4 {[%clk 0:02:22]} 44. Rc2 {[%clk 0:51:36]} 44... Rb3 {[%clk
0:01:56]} 45. Qd1 {[%clk 0:49:14]} 45... Rc3 {[%clk 0:01:14]} 46. Rg2 {[%clk
0:40:39]} 46... Ne3 {[%clk 0:00:49]} 47. Qd4 {[%clk 0:38:13]} 47... Rc1+ {[%clk
0:00:37]} 48. Rg1 {[%clk 0:38:36]} 48... Rxg1+ {[%clk 0:00:39]} 49. Kxg1 {[%clk
0:38:58]} 49... Nc2 {[%clk 0:00:37]} 50. Qxd5 {[%clk 0:39:20]} 50... b4 {[%clk
0:00:56]} 51. Nc8 {[%clk 0:39:35]} 51... Re8 {[%clk 0:01:15]} 52. e7+ {[%clk
0:00:00]} 52... Kh7 {[%clk 0:04:01]} 53. f6 {[%clk 0:40:32]} 53... Rxc8 {[%clk
0:04:04]} 54. Qf5+ {[%clk 0:40:57]} 54... g6 {[%clk 0:04:13]} 55. Qxc8 {[%clk
0:41:22]} 55... b3 {[%clk 0:04:23]} 56. e8=Q {[%clk 0:41:44]} 56... b2 {[%clk
0:04:35]} 57. Qf7# {[%clk 0:42:06]} 1-0

[Variant "Standard"]
[Site "Europe Echecs"]